Cogmind - Beta 16 @@@ ROGUE MODE // 2026.01.10 @ 21:20:47 Player: leto Result: Destroyed by as-19657 with Assembled Heavy Rifle Performance ------------- Evolutions (0) 0 Regions Visited (2) 400 Robots Destroyed (25) 125 Value Destroyed (410) 410 Prototype IDs (0) 0 Alien Tech Used (0) 0 Bonus (-155) -155 TOTAL SCORE: 780 Bonus ------- Friendly Fire -155 Cogmind --------- Core Integrity 0/250 Matter 190/300 Energy 100/100 System Corruption 0% Temperature Cool (0) Movement Core (1450) Ox28 Location -10/Mines Parts ------- > --- POWER (1) -------- (None) > --- PROPULSION (2) --- (None) > --- UTILITY (2) ------ Huge Storage Unit Sensor Array > --- WEAPON (2) ------- Assault Rifle Grenade Launcher > --- INVENTORY (25) --- Ion Engine Light Ion Engine Light Treads Light Treads Wheel Compact Wheel Compact Wheel Flight Unit Flight Unit Weight Redist. System Hacking Suite Small Laser Particle Gun Particle Gun Particle Gun Particle Gun Datajack Mining Claw Peak State ------------ > --- POWER ------------ Ion Engine > --- PROPULSION ------- Light Treads Light Treads > --- UTILITY ---------- Huge Storage Unit Weight Redist. System > --- WEAPON ----------- Small Laser Light Assault Rifle > --- INVENTORY -------- Ion Engine Light Ion Engine Light Treads Light Treads Light Treads Wheel Compact Wheel Compact Wheel Flight Unit Flight Unit Hacking Suite Particle Gun Particle Gun Grenade Launcher Datajack Mining Claw [Rating: 10] Favorites ----------- Power Ion Engine Engine Ion Engine Propulsion Light Treads Treads Light Treads Flight Unit Flight Unit Utility Huge Storage Unit Device Weight Redist. System Storage Huge Storage Unit Weapon Small Laser Energy Gun Small Laser Ballistic Gun Light Assault Rifle Launcher Grenade Launcher Build | -11 -10 -10 ------- Run | Yrd Mat Min Slots Evolved . | . . . Power . | . . . Propulsion . | . . . Utility . | . . . Weapon . | . . . Parts Attached 18 | 6 9 3 Power 3 | 1 2 . Engine 3 | 1 2 . Core . | . . . Reactor . | . . . Propulsion 5 | 2 2 1 Treads 4 | 2 2 . Leg . | . . . Wheel . | . . . Hover . | . . . Flight 1 | . . 1 Utility 5 | 1 3 1 Device 2 | . 1 1 Storage 3 | 1 2 . Processor . | . . . Hackware . | . . . Protection . | . . . Artifact . | . . . Weapon 5 | 2 2 1 Energy Gun 2 | 2 . . Energy Cannon . | . . . Ballistic Gun 2 | . 2 . Ballistic Cannon . | . . . Launcher 1 | . . 1 Special Weapon . | . . . Impact Weapon . | . . . Slashing Weapon . | . . . Piercing Weapon . | . . . Special Melee Weapon . | . . . Unidentified Prototypes . | . . . Parts Lost 6 | . 3 3 Power 3 | . 2 1 Propulsion 3 | . 1 2 Utility . | . . . Weapon . | . . . Highest Loss Streak 3 | . 2 3 To Critical Strikes . | . . . Average Backups 11 | 3 11 18 Power 1 | . 1 2 Propulsion 5 | 1 5 7 Utility 1 | . 1 2 Weapon 2 | . 2 6 Tool/Special . | . . . Unused Backups 14 | . . 14 Power 2 | . . 2 Propulsion 5 | . . 5 Utility 1 | . . 1 Weapon 5 | . . 5 Tool/Special 1 | . . 1 Average Slot Usage (%) 90 | . 90 97 Engine 13 | . 13 14 Treads 27 | . 27 19 Device 5 | . 5 14 Storage 14 | . 14 14 Energy Gun 16 | . 16 12 Ballistic Gun 11 | . 11 14 Peak Build Rating 10 | 6 10 10 Average Rating 7 | 4 7 8 On Entrance 4 | . 6 8 Avg Prop Armor Cover (%) . | . . . Naked Turns . | . . . Heaviest Build 89 | 13 88 89 Greatest Support 46 | 40 46 40 Greatest Overweight (x) 22 | 1 3 22 Average Overweight (x) . | . . 4 Largest Inventory Capacity 25 | 8 25 25 Average Capacity 17 | 7 17 25 Most Carried 20 | 5 20 19 Average Carried 11 | 3 11 18 Final Capacity 25 | 8 25 25 Final Carried 20 | 5 20 18 Class Distribution -------------------- 100% | Mutant Dominant Class ---------------- Mutant | -10/Materials Mutant | -10/Mines Resources | -11 -10 -10 ----------- Run | Yrd Mat Min Matter Collected 435 | 129 306 . Remotely . | . . . Salvage Created 703 | 65 580 58 Parts 54 | 2 50 2 Haulers Intercepted 2 | . 2 . Recyclers Shooed 1 | . 1 . Parts Field Recycled . | . . . Retrieved Matter . | . . . Parts Self-Destructed . | . . . Prevented . | . . . Parts Restored . | . . . Kills | -11 -10 -10 ------- Run | Yrd Mat Min Combat Hostiles Destroyed 31 | . 17 14 Guns 17 | . 17 . AOE 14 | . . 14 Classes Destroyed 9 | 1 6 2 Worker 1 | . 1 . Builder 1 | . 1 . Hauler 2 | . 2 . Recycler 1 | 1 . . Operator 2 | . 2 . Swarmer 9 | . 9 . Grunt 8 | . 8 . Assembled 14 | . . 14 Guerrilla 1 | . . 1 Best Kill Streak 14 | 1 4 14 Combat Bots Only 14 | . 3 14 Max Kills in Single Turn 4 | 1 2 4 Gunslinging . | . . . Exploded 4 | . . 4 Melee . | . . . Uniques/NPCs Destroyed . | . . . Combat | -11 -10 -10 -------- Run | Yrd Mat Min Hostile Shots Fired 135 | . 114 21 Missed 26 | . 19 7 Hits 109 | . 95 14 Projectile 109 | . 95 14 Damage Taken 1229 | . 1013 216 Core 263 | . 230 33 Absorbed by Shields . | . . . Core Remaining (%) 100 | 100 . . Volleys Fired 84 | 1 76 7 Largest 2 | 2 2 1 Hottest 80 | 80 80 30 Shots Fired 159 | 2 150 7 Gun 152 | 2 150 . Cannon . | . . . Launcher 7 | . . 7 Special . | . . . Kinetic 70 | . 70 . Thermal 75 | 1 74 . Explosive 7 | . . 7 Electromagnetic 7 | 1 6 . Robot Hit Streak 12 | 2 12 4 Robot Miss Streak 3 | . 3 1 Penetration Max . | . . . Secondary Targets 2 | . 2 . Max Gunslinging Chain 1 | . 1 . Shots Hit Robots 103 | 2 97 4 Core Hits 75 | 2 35 38 Critical Kills . | . . . Critical Parts Destroyed 1 | . 1 . Critical Strikes 1 | . 1 . Destroy 1 | . 1 . Melee Attacks . | . . . Impact . | . . . Slashing . | . . . Piercing . | . . . Sneak Attacks . | . . . Combat Hostiles . | . . . Follow-up Attacks . | . . . Damage Inflicted 2051 | 27 1178 846 Guns 1079 | 27 1052 . Cannons . | . . . Explosions 963 | . 117 846 Melee . | . . . Ramming 9 | . 9 . Kinetic 445 | . 445 . Thermal 676 | 12 664 . Explosive 846 | . . 846 Electromagnetic 75 | 15 60 . Impact . | . . . Slashing . | . . . Piercing . | . . . Highest Corruption . | . . . Average Corruption . | . . . Corruption Purged . | . . . Corruption Blocked . | . . . Overload Shots . | . . . Overflow Damage 2 | . . 2 Projectiles . | . . . Explosions 2 | . . 2 Melee . | . . . Knockbacks . | . . . Impact . | . . . Kinetic . | . . . Secondary . | . . . Self-Inflicted Damage 50 | . 40 10 Shots 2 | . 1 1 Rammed 4 | . 4 . Targets Rammed 4 | . 4 . Kicked . | . . . Crushed . | . . . Highest Temperature 120 | 18 120 . Average Temperature 44 | 12 44 . Received Heat Transfer 387 | . 387 . Siege Activations . | . . . Martial Activations . | . . . Shielding Activations . | . . . Robots Disrupted . | . . . Combat Hostiles . | . . . Robots Corrupted . | . . . Combat Hostiles . | . . . Parts Fried . | . . . Impact Corruptions . | . . . Robots Melted . | . . . Combat Hostiles . | . . . Parts Melted 3 | . 3 . Heat Transferred 1425 | 25 1400 . Parts Sabotaged . | . . . Parts Stolen . | . . . Parts Stripped . | . . . Power Chain Reactions 2 | . 2 . Alert | -11 -10 -10 ------- Run | Yrd Mat Min Maximum Alert Level . | . . . Low Security (%) 100 | 100 100 100 Level 1 . | . . . Level 2 . | . . . Level 3 . | . . . Level 4 . | . . . Level 5 . | . . . High Security . | . . . Max Security . | . . . Peak Influence 180 | 5 180 11 Initial 11 | . . 11 Average 81 | . 93 3 Influence Increases 508 | 5 480 23 Destroy 0b10 Robot/C 340 | . 340 . Destroy 0b10 Robot/NC 35 | 5 30 . Destroy Leader 54 | . 54 . Successful Hack 30 | . 30 . Destroy Structure 34 | . 11 23 Lose Combat Pursuer 15 | . 15 . Influence Decreases 507 | 5 450 52 Entered New Map 19 | . . 19 Time Decay 436 | 5 420 11 Lost Part 52 | . 30 22 Squads Dispatched 2 | . 2 . Investigation 1 | . 1 . Extermination . | . . . Reinforcement 1 | . 1 . Assault . | . . . Garrison . | . . . Intercept . | . . . Searches Triggered . | . . . Construction Impeded . | . . . Haulers Reinforced . | . . . Active Scanning Responses . | . . . Cargo Convoy Interrupts . | . . . Stealth | -11 -10 -10 --------- Run | Yrd Mat Min Distress Signals 1 | . 1 . Communications Jammed . | . . . Distress Signals . | . . . Times Spotted 52 | . 32 20 Peak Tracking Total 15 | . 4 15 Tactical Retreats 1 | . 1 . Traps | -11 -10 -10 ------- Run | Yrd Mat Min Traps Triggered 1 | . 1 . Indirectly . | . . . Trap Hack Attempts . | . . . Triggered . | . . . Disarmed . | . . . Reprogrammed . | . . . Reused . | . . . Traps Extracted . | . . . Installed . | . . . Triggered . | . . . Machines | -11 -10 -10 ---------- Run | Yrd Mat Min Machines Disabled . | . . . Max in Single Turn . | . . . Machines Repaired . | . . . Machines Dismantled . | . . . Machines Sabotaged . | . . . Overloaded Fab Kills . | . . . Hacking | -11 -10 -10 --------- Run | Yrd Mat Min Machines Accessed 5 | . 5 . Terminals 5 | . 5 . Fabricators . | . . . Repair Stations . | . . . Recycling Units . | . . . Scanalyzers . | . . . Garrison Access . | . . . Total Hacks 17 | . 17 . Successful 9 | . 9 . Failed 8 | . 8 . Catastrophic . | . . . Database Lockouts . | . . . Manual 17 | . 17 . Terminals 17 | . 17 . Fabricators . | . . . Repair Stations . | . . . Recycling Units . | . . . Scanalyzers . | . . . Garrison Access . | . . . Terminal Hacks 2 | . 2 . Branch Access Points 1 | . 1 . Locate Traps 1 | . 1 . Fabricator Hacks . | . . . Repair Station Hacks . | . . . Recycling Unit Hacks . | . . . Scanalyzer . | . . . Garrison Access Hacks . | . . . Unauthorized Hacks 7 | . 7 . Terminals 7 | . 7 . Botnet 3 | . 3 . Disrupt 3 | . 3 . Operators 1 | . 1 . Fabricators . | . . . Repair Stations . | . . . Recycling Units . | . . . Scanalyzers . | . . . Garrison Access . | . . . Data Cores Recovered 1 | . 1 . Used . | . . . Hacking Detections 5 | . 5 . Full Trace Events . | . . . Feedback Events . | . . . Feedback Blocked . | . . . Robot Schematics Acquired . | . . . Robots Built . | . . . Authchips . | . . . Time . | . . . Total Robot Build Rating . | . . . Part Schematics Acquired . | . . . Parts Built . | . . . Authchips . | . . . Time . | . . . Total Part Build Rating . | . . . Part Studies Acquired . | . . . Parts Repaired . | . . . Time . | . . . Parts Recycled . | . . . Recycled Matter . | . . . Retrieved Matter . | . . . Retrieved Components . | . . . Parts Scanalyzed . | . . . Part Schematics Acquired . | . . . Parts Damaged . | . . . Bothacking | -11 -10 -10 ------------ Run | Yrd Mat Min Used RIF Installer . | . . . Robots Hacked . | . . . Non-combat . | . . . Combat . | . . . Robot Hacks Applied . | . . . Relay Couplers Released . | . . . Fabnet Peak Effective % . | . . . Robots Rewired . | . . . Allies Hacked . | . . . Hacks Repelled . | . . . Allies | -11 -10 -10 -------- Run | Yrd Mat Min Total Allies . | . . . Largest Group . | . . . Highest-Rated Group . | . . . Highest-Rated Ally . | . . . Total Orders . | . . . Ally Attacks . | . . . Total Damage . | . . . Kills . | . . . Allies Corrupted . | . . . Allies Melted . | . . . Intel | -11 -10 -10 ------- Run | Yrd Mat Min Active Infowar (turns) 95 | . . 95 Sensors 95 | . . 95 Robot Analysis Total . | . . . Derelict Logs Recovered . | . . . Drone Launches . | . . . Drone Recoveries . | . . . Exploration | -11 -10 -10 ------------- Run | Yrd Mat Min Turns Passed 1358 | 72 1189 97 Spaces Moved 538 | 39 484 15 Core 6 | 6 . . Treads 530 | 33 484 13 Legs . | . . . Wheels . | . . . Hover . | . . . Flight 2 | . . 2 Fastest Speed 50 | 50 160 320 Average Speed 192 | 144 186 520 Slowest Speed 1820 | 160 400 1820 Overloaded Moves . | . . . Propulsion Burnouts . | . . . Robots Hopped . | . . . Potential Cave-ins . | . . . Cave-ins Triggered . | . . . Exploration Rate (%) 33 | 5 85 10 Regions Visited 2 Branch Regions 1 Pre-discovered Areas . | . . . Known Exits Taken 1 | . 1 . Unknown Exits Taken 1 | 1 . . Scrap Searched . | . . . Spaces Dug . | . . . Terrain Destroyed 46 | . 9 37 Melee . | . . . Projectile . | . . . AOE 46 | . 9 37 Terrain Rammed . | . . . Walls Destroyed . | . . . Machines Disabled . | . . . Actions | -11 -10 -10 --------- Run | Yrd Mat Min Total 704 | 50 627 27 Wait 37 | . 37 . Move 536 | 38 483 15 Hop . | . . . Pick Up 19 | 5 14 . Fast Attach 10 | 6 4 . Attach 4 | . 2 2 Detach . | . . . Swap 6 | . 3 3 Drop 4 | . 4 . Fire 84 | 1 76 7 Melee . | . . . Ram . | . . . Kick . | . . . Crush 4 | . 4 . Escape Stasis . | . . . Rewire . | . . . Trap . | . . . Miscellaneous . | . . . Route ------- -11/Scrapyard -10/Materials (discovered 4 exits: [*Mat] / *Min x2 / [*Sub]) -10/Mines History --------- Turn | Location | Event 11 | -11/Scrapyard | Discovered new exit (range 16) 73 | -11/Scrapyard | Entered Materials 307 | -10/Materials | Build established: Mutant 329 | -10/Materials | Discovered new exit (range 14) 445 | -10/Materials | Identified exit to Mines 650 | -10/Materials | Discovered new exit (range 15) 893 | -10/Materials | Discovered new exit (range 9) 1132 | -10/Materials | Core integrity fell below 50% 1258 | -10/Materials | Core integrity fell below 20% 1262 | -10/Materials | Entered Mines 1327 | -10/Mines | Assembled infested the area 1332 | -10/Mines | Assisted by a Guerilla fighting off Assembled 1359 | -10/Mines | Destroyed by as-19657 with Assembled Heavy Rifle Last Messages --------------- Destroyed Lgt. Treads. as-69354 destroyed. as-20947 destroyed. ZL-0BW(h) destroyed. as-79679 destroyed. Destroyed Asb. Hover Unit. as-40333 destroyed. The unstable cave ceiling collapses. as-60643 destroyed. as-23683 destroyed. as-58627 destroyed. as-66190 destroyed. as-62445 destroyed. as-52519 destroyed. as-22820 destroyed. as-77188 destroyed. as-12484 destroyed. Lgt. Treads destroyed. Ion Engine destroyed. as-64326 destroyed. Map ----- +----------------------------------------------------+ | | | | | | | | | | | | | | | | | | | | | ??????????????????????????????????????????????? | | ??????####????????????????????????????????????? | | ?????## #??????######???????????????????????? | | ????## ###### ##??????????????????????? | | ????# #??????????????????????? | | ????# """ #??????????????????????? | | ?????# """ #???????????????????????? | | ??????# """ #?????????????????????????? | | ???????# # ###?????????????????????????? | | ???????# ## #???????????????????????????? | | ???????# ### #?????????#?#???????????????? | | ???????## ##?# #??????## # ####????????????? | | ????????####???# #?????# ## ?????????? | | ???????????????# ###### ????????? | | ???????????????# ????????? | | ???????????????# @ a ????????? | | ???????????????######### ????????? | | ?????????????????????????? a #????????? | | ???????????????????????????? a#?????????? | | ?????????????????????????????? a #?????????? | | ???????????????????????????????? *??????????? | | ??????????????????????????????????a%??????????? | | ??????????????????????????????????????????????? | | ??????????????????????????????????????????????? | | ??????????????????????????????????????????????? | | ??????????????????????????????????????????????? | | ??????????????????????????????????????????????? | | ??????????????????????????????????????????????? | | ??????????????????????????????????????????????? | | ??????????????????????????????????????????????? | | ??????????????????????????????????????????????? | | ??????????????????????????????????????????????? | | ??????????????????????????????????????????????? | | ??????????????????????????????????????????????? | | ??????????????????????????????????????????????? | | ??????????????????????????????????????????????? | | ??????????????????????????????????????????????? | | ??????????????????????????????????????????????? | | ??????????????????????????????????????????????? | | ??????????????????????????????????????????????? | +----------------------------------------------------+ Best States ------------- Heat Dissipation 25 Energy Generation 10 Energy Capacity 250 Matter Stores 300 Matter Capacity 300 Sight Range 16 Robot Scan Range 14 Terrain Scan Density 10 Additional Mass Support 6 Evasion (%) 40 Recoil Reduction 2 Item Schematics ----------------- None Robot Schematics ------------------ None Fabricated ------------ Nothing Repaired ---------- Nothing Studied --------- None Alien Tech Used ----------------- None Achievements -------------- None Challenges ------------ None Game ------ Seed TripodImpulseSource Manual? 0 Play Time 00:08:30 Cumulative 14.6 hours Start 2026.01.10 @ 14:06:46 End 2026.01.10 @ 21:20:47 Sessions 1 Manual Loads 0 Difficulty Rogue Special Mode None Game No. 22 Rogue 22 Adventurer 0 Explorer 0 Win Type - Total 0 Types 0/0/0/0/0/0/0/0/0/0 Lore% 9 Gallery% 21 Achievement% 23 Wizard Run 0 Options --------- Layout 1 ASCII 0 Keyboard 1 Movement Vi Keybinds 0 Fullscreen 1 Font 24/Smallcaps Map View 50x35 Zoom Use 0% Tactical HUD 0 Map Filters NONE Filters NONE Steam 1 RUN: 851b92e9-e67d-49df-ae93-376bc4b9ade8